bitfinex-derivatives/quotes_ETHF0:USTF0_20250902
["timestamp","ask_amount","ask_price","bid_price","bid_amount"]
[1756826642537,3.2078,4335.2,4334.0,0.4777]
[1756826642738,3.2078,4335.2,4334.0,0.247]
[1756826643741,3.2078,4334.7,4334.0,0.247]
[1756826644244,3.2078,4335.7,4334.4,3.2078]
[1756826644439,3.2078,4335.7,4334.5,0.247]
[1756826645143,3.2078,4335.7,4334.9,3.2078]
[1756826645739,3.2078,4335.7,4334.5,0.247]
[1756826645939,3.2078,4335.7,4334.4,3.2078]
[1756826646137,0.23068,4335.6,4334.4,3.2078]
[1756826646341,3.2078,4334.7,4333.2,3.2078]
[1756826646546,0.247,4335.5,4332.7,3.2078]
[1756826646547,3.2078,4334.2,4332.7,3.2078]
[1756826646740,3.2078,4333.7,4332.7,3.2078]
[1756826646940,3.2078,4334.2,4333.2,3.2078]
[1756826647139,3.2078,4334.2,4333.1,3.2078]
[1756826647346,0.247,4334.1,4332.7,0.247]
[1756826647640,3.2078,4333.7,4332.6,3.2078]
[1756826647853,3.2078,4333.7,4332.6,3.4548]
[1756826649043,3.2078,4334.2,4333.2,3.2078]
[1756826649239,3.2078,4333.6,4332.6,3.2078]
[1756826649439,3.2078,4334.1,4333.0,0.247]
[1756826649847,0.247,4334.0,4333.0,0.247]
[1756826650448,3.2078,4333.6,4333.0,0.247]
[1756826651439,3.2078,4333.6,4332.6,3.2078]
[1756826651644,0.247,4333.5,4332.6,3.2078]
[1756826652038,3.2078,4333.6,4332.6,3.2078]
[1756826652344,0.247,4333.5,4332.6,3.2078]
[1756826653145,3.2078,4333.1,4331.9,3.2078]
[1756826653350,3.2078,4332.6,4331.5,0.247]
[1756826653552,3.2078,4332.1,4330.7,3.2078]
[1756826653849,3.4548,4332.1,4330.7,3.38634754]
[1756826654151,3.2078,4331.6,4330.7,3.2078]
[1756826654851,3.2078,4332.3,4330.7,3.38771242]
[1756826655053,0.247,4332.2,4330.7,0.17991242]
[1756826655253,0.247,4332.1,4331.2,3.2078]
[1756826655445,3.2078,4332.3,4331.2,3.2078]
[1756826655650,0.247,4332.2,4330.7,3.38925688]
[1756826655954,3.2078,4331.8,4330.8,0.247]
[1756826656354,3.2078,4331.8,4330.6,40.8]
[1756826656355,0.247,4331.7,4330.2,3.2078]
[1756826656652,3.2078,4331.3,4330.2,3.38992136]
[1756826656857,0.247,4331.4,4330.2,3.38992136]
[1756826657152,3.2078,4331.5,4330.2,3.2078]
[1756826657747,3.2078,4331.5,4330.2,3.38715569]
[1756826657946,0.247,4331.6,4330.2,3.38715569]
[1756826658149,3.2078,4332.0,4330.2,3.38715569]
[1756826658345,0.128,4331.9,4330.2,3.38715569]
[1756826658544,3.2078,4331.5,4330.2,3.38715569]
[1756826658846,0.156,4331.7,4330.7,3.2078]
[1756826659055,3.2078,4332.0,4330.7,3.4548]
[1756826659259,0.247,4331.9,4330.7,3.4548]
[1756826659751,0.247,4331.9,4330.2,0.17935569]
[1756826659752,3.2078,4331.5,4330.2,0.17935569]
[1756826660050,3.2078,4331.5,4330.1,3.4548]
[1756826660257,0.247,4331.4,4330.1,3.4548]
[1756826660658,3.2078,4331.5,4330.1,3.4548]
[1756826660858,3.2078,4331.5,4330.6,3.2078]
[1756826661160,3.2078,4331.5,4330.7,0.247]
[1756826661360,3.2078,4331.5,4330.6,3.2078]
[1756826662357,3.2078,4331.0,4330.1,3.2078]
[1756826662656,3.2078,4331.0,4327.9,1.03967]
[1756826662657,3.2078,4330.2,4328.1,3.2078]
[1756826662853,3.2078,4329.2,4328.2,40.8]
[1756826663056,3.2078,4328.7,4328.1,3.2078]
[1756826663255,3.2078,4329.2,4328.2,0.23095]
[1756826663459,3.2078,4330.0,4328.6,3.2078]
[1756826663658,3.2078,4330.0,4329.1,3.2078]
[1756826663854,3.2078,4330.6,4329.2,0.247]
[1756826664464,3.2078,4330.6,4329.2,0.66274]
[1756826665061,3.2078,4330.6,4329.2,0.247]
[1756826665360,3.2078,4330.1,4329.3,0.247]
[1756826665754,3.2078,4330.6,4329.6,3.2078]
[1756826666356,3.2078,4330.8,4329.6,3.2078]
[1756826666551,3.2078,4330.3,4329.1,3.2078]
[1756826666757,3.2078,4330.2,4329.1,3.2078]
[1756826666958,3.2078,4331.0,4329.6,3.2078]
[1756826667164,3.2078,4331.0,4330.1,3.2078]
[1756826667457,3.2078,4331.0,4330.2,0.247]
[1756826668664,3.2078,4331.8,4330.3,0.41564]
[1756826668960,3.2078,4331.8,4330.4,40.8]
[1756826669661,3.2078,4331.8,4330.7,3.2078]
[1756826669854,3.2078,4332.4,4331.2,3.2078]
[1756826670062,3.2078,4332.4,4331.8,3.2078]
[1756826670262,3.2078,4332.4,4331.9,0.247]
[1756826670768,3.2078,4332.4,4332.0,0.247]
[1756826671159,3.2078,4332.4,4330.7,3.2078]
[1756826671465,3.2078,4331.0,4330.8,0.247]
[1756826672655,3.2078,4331.0,4330.5,0.247]
[1756826673660,3.2078,4331.8,4330.6,3.2078]
[1756826673860,3.2078,4331.8,4330.5,0.247]
[1756826674061,3.2078,4331.3,4330.6,0.247]
[1756826675260,3.4548,4331.3,4330.0,0.247]
[1756826675565,3.2078,4330.8,4330.0,0.43100474]
[1756826675955,3.2078,4331.3,4330.2,3.2078]
[1756826676356,3.2078,4331.3,4330.2,3.62345]
[1756826676558,3.2078,4331.3,4330.2,3.2078]
[1756826676863,3.2078,4331.3,4330.2,3.62344]
[1756826677164,3.2078,4331.3,4330.3,0.41564]
[1756826677365,3.2078,4331.3,4330.4,0.66263]
[1756826677562,3.2078,4331.3,4330.4,0.247]
[1756826678167,3.2078,4331.3,4330.2,3.2078]
[1756826678367,3.2078,4331.3,4330.3,0.247]
[1756826678567,3.2078,4331.3,4330.2,3.2078]
[1756826678869,3.2078,4330.8,4329.7,3.2078]
[1756826679069,3.2078,4330.3,4329.8,0.247]
[1756826679265,3.2078,4330.9,4329.9,40.8]
[1756826680069,3.2078,4330.9,4330.2,3.2078]
[1756826680262,3.2078,4330.9,4330.3,0.247]
[1756826680459,3.2078,4331.4,4330.3,0.247]
[1756826680769,3.2078,4331.4,4330.8,3.2078]
[1756826680969,3.2078,4332.2,4331.3,3.2078]
[1756826681161,3.2078,4332.8,4331.4,0.247]
[1756826681667,3.2078,4332.3,4331.5,0.247]
[1756826681869,30.482,4333.7,4331.3,0.247]
[1756826681870,3.2078,4331.8,4331.3,0.247]
[1756826683069,3.2078,4331.8,4330.3,30.482]
[1756826683269,3.2078,4331.8,4330.4,0.247]
[1756826683764,3.2078,4331.8,4330.8,3.2078]
[1756826683965,3.2078,4332.3,4331.3,3.2078]
[1756826684264,3.2078,4332.3,4331.4,0.247]
[1756826684669,3.2078,4332.8,4331.4,0.66253]
[1756826684866,3.2078,4333.3,4332.3,3.2078]
[1756826685072,3.2078,4333.3,4332.4,0.247]
[1756826685268,3.2078,4333.3,4331.6,3.2078]
[1756826685473,3.2078,4332.2,4331.5,40.8]
[1756826685674,3.2078,4332.2,4331.6,0.247]
[1756826686575,3.2078,4331.7,4331.0,0.247]
[1756826686769,3.2078,4331.2,4330.5,0.247]
[1756826687872,3.2078,4331.7,4330.5,0.247]
[1756826688078,3.2078,4331.7,4330.7,3.6234]
[1756826688266,3.2078,4331.7,4330.7,3.2078]
[1756826688571,3.2078,4331.7,4330.5,0.247]
[1756826689381,3.2078,4331.7,4330.6,0.41561]
[1756826689567,3.2078,4331.7,4330.8,3.2078]
[1756826690578,3.2078,4331.2,4330.4,0.247]
[1756826690776,3.2078,4330.7,4330.4,0.247]
[1756826691368,3.2078,4331.2,4330.4,0.247]
[1756826692976,3.2078,4331.9,4330.8,3.2078]
[1756826693174,3.2078,4331.9,4331.1,0.41556]
[1756826693373,3.2078,4332.4,4330.9,0.247]
[1756826693579,30.48,4333.7,4330.9,0.247]
[1756826693580,3.2078,4332.9,4331.5,0.41552]
[1756826693876,3.2078,4332.9,4331.6,0.247]
[1756826694072,3.2078,4332.9,4331.9,3.2078]
[1756826694269,3.2078,4332.9,4331.9,3.62328]
[1756826694471,3.2078,4332.9,4332.0,0.41547]
[1756826694672,3.2078,4332.9,4331.9,3.2078]
[1756826694876,3.2078,4332.9,4332.0,0.247]
[1756826698082,3.2078,4332.9,4331.9,3.2078]
[1756826698981,3.2078,4332.4,4331.8,0.247]
[1756826700283,3.2078,4332.4,4331.4,3.2078]
[1756826700482,3.2078,4332.4,4331.5,0.247]
[1756826700983,30.65884796,4335.3,4332.0,0.41547]
[1756826700984,3.2078,4333.0,4332.0,0.41547]
[1756826701181,3.2078,4333.0,4332.1,0.247]
[1756826702183,3.2078,4333.6,4332.7,3.2078]
[1756826702485,3.2078,4333.0,4332.0,3.2078]
[1756826702785,3.2078,4332.5,4332.0,0.247]
[1756826703389,3.2078,4332.5,4330.8,3.2078]
[1756826703582,3.2078,4331.8,4330.8,0.247]
[1756826703778,3.2078,4331.3,4330.8,0.247]
[1756826703987,3.2078,4331.3,4330.7,0.247]
[1756826705197,3.2078,4332.1,4331.1,3.2078]
[1756826705495,3.2078,4332.1,4331.2,0.247]
[1756826706094,3.2078,4332.1,4331.2,0.66255]
[1756826706295,0.1154,4332.4,4331.6,3.2078]
[1756826706496,0.1154,4332.4,4331.7,0.247]
[1756826707588,0.1154,4332.4,4332.1,0.41546]
[1756826707786,0.1154,4332.4,4332.3,3.2078]
[1756826708489,3.2078,4333.6,4332.3,7.2078]
[1756826708686,3.2078,4333.6,4332.8,3.2078]
[1756826708890,3.2078,4333.6,4332.9,0.247]
[1756826710899,3.2078,4333.6,4333.0,0.247]
[1756826711498,3.2078,4333.6,4333.1,0.247]
[1756826712201,3.2078,4333.6,4331.8,2.306]
[1756826712202,4.247,4333.5,4331.2,0.247]
[1756826712392,3.2078,4331.9,4331.2,0.247]
[1756826712592,3.2078,4332.5,4331.4,3.62333]
[1756826712793,3.2078,4333.0,4331.4,3.2078]
[1756826713702,3.2078,4332.5,4331.4,3.2078]
[1756826714804,3.2078,4332.5,4331.5,0.247]
[1756826715401,3.2078,4332.5,4331.6,0.247]
[1756826716695,3.2078,4332.5,4331.4,3.2078]
[1756826716891,3.2078,4332.5,4331.5,0.247]
[1756826719399,3.2078,4333.0,4332.0,3.2078]
[1756826719609,3.2078,4333.0,4332.1,0.247]
[1756826719903,3.2078,4333.0,4331.5,3.2078]
[1756826720097,3.2078,4332.5,4331.5,3.2078]
[1756826720292,3.2078,4332.0,4331.3,0.247]
[1756826720499,3.2078,4332.0,4331.0,3.2078]
[1756826720706,3.2078,4332.0,4330.5,3.2078]
[1756826720904,3.2078,4332.0,4330.6,0.247]
[1756826721101,3.2078,4331.4,4330.6,0.247]
[1756826723709,3.2078,4330.9,4330.2,0.247]
[1756826723905,3.2078,4330.4,4330.0,0.247]
[1756826725206,3.2078,4330.4,4329.5,3.2078]
[1756826726006,3.2078,4329.9,4328.9,0.184425]
[1756826726304,3.2078,4329.9,4329.1,0.247]
[1756826726502,3.2078,4329.9,4328.9,0.247]
[1756826726701,3.2078,4329.9,4328.9,0.43106374]
[1756826727203,3.2078,4329.9,4328.9,0.247]
[1756826727400,3.2078,4329.9,4329.0,0.247]
[1756826727600,3.2078,4329.9,4328.8,0.18077624]
[1756826727802,3.2078,4329.9,4328.9,0.247]
[1756826727997,0.247,4330.1,4327.7,3.2078]
[1756826727998,3.2078,4329.0,4327.7,3.2078]
[1756826728202,3.2078,4328.8,4327.8,0.247]
[1756826728407,3.2078,4328.3,4327.2,3.4548]
[1756826728805,3.2078,4328.3,4327.2,3.6371658]
[1756826729005,3.2078,4328.3,4327.2,3.4548]
[1756826729506,3.2078,4328.3,4327.2,3.63290289]
[1756826729705,3.2078,4328.3,4327.2,0.42510289]
[1756826729907,3.2078,4328.3,4327.0,30.479]
[1756826730097,3.2078,4327.8,4327.1,0.247]
[1756826732209,3.2078,4328.5,4327.5,3.2078]
[1756826732414,3.2078,4328.5,4327.6,0.247]
[1756826732604,3.2078,4328.5,4327.7,0.247]
[1756826733404,3.2078,4329.3,4328.2,3.2078]
[1756826733604,3.2078,4329.3,4328.3,3.4548]
[1756826733799,0.247,4329.9,4327.5,0.04021306]
[1756826733800,3.2078,4328.8,4328.4,0.247]
[1756826734004,3.2078,4328.8,4328.5,0.247]
[1756826734204,3.2078,4328.8,4328.2,0.247]
[1756826735107,3.2078,4328.8,4327.7,3.2078]
[1756826735312,3.2078,4327.8,4327.0,30.65598297]
[1756826735514,3.2078,4327.8,4327.1,0.247]
[1756826737213,3.2078,4327.8,4327.1,41.047]
[1756826737413,3.2078,4327.8,4327.1,41.46294]
[1756826737609,3.2078,4327.8,4327.1,41.047]
[1756826738218,3.2078,4327.8,4327.0,30.65598297]
[1756826738408,3.2078,4327.8,4327.1,0.247]
[1756826739811,3.2078,4327.8,4327.0,30.65598297]
[1756826740014,3.2078,4327.8,4327.2,0.247]
[1756826740312,3.2078,4327.8,4327.3,0.247]
[1756826741310,3.2078,4327.8,4327.5,0.41591]
[1756826741507,0.1155,4328.0,4327.7,0.41589]
[1756826741708,0.1155,4328.0,4327.6,0.247]
[1756826741908,0.1155,4328.0,4327.8,0.41588]
[1756826742110,0.1155,4328.0,4327.9,0.247]
[1756826742311,0.1155,4328.0,4327.1,0.247]
[1756826742513,3.2078,4327.7,4327.1,0.247]
[1756826743605,0.23109001,4327.6,4327.1,0.247]
[1756826743806,3.2078,4327.7,4326.8,0.247]
[1756826744011,3.2078,4327.2,4326.8,0.247]
[1756826744314,3.2078,4327.2,4326.4,0.42639119]
[1756826744515,3.2078,4327.2,4326.5,0.247]
[1756826744713,3.2078,4327.2,4326.2,0.42722254]
[1756826744912,3.2078,4326.7,4326.2,0.247]
[1756826745119,3.2078,4326.7,4325.6,3.2078]
[1756826745318,3.2078,4326.7,4326.1,0.247]
[1756826746512,3.2078,4327.2,4326.1,0.247]
[1756826746718,3.2078,4327.2,4326.1,3.4548]
[1756826746919,3.2078,4327.2,4326.1,3.2078]
[1756826747116,3.2078,4327.2,4326.2,0.247]
[1756826747315,3.2078,4326.6,4326.2,0.247]
[1756826747516,3.2078,4326.6,4326.0,0.17932271]
[1756826747712,3.2078,4326.6,4326.1,0.247]
[1756826748623,0.47814,4326.5,4324.6,3.2078]
[1756826748821,3.2078,4325.7,4325.0,0.158]
[1756826749021,3.2078,4325.7,4325.0,0.34261977]
[1756826749223,3.2078,4325.7,4325.0,0.18461977]
[1756826749422,3.2078,4325.7,4324.8,0.247]
[1756826751223,3.2078,4325.7,4324.6,3.2078]
[1756826751519,3.2078,4325.7,4324.7,0.247]
[1756826752723,3.2078,4325.7,4325.1,3.2078]
[1756826752925,30.505,4327.4,4325.2,0.247]
[1756826752926,3.2078,4326.3,4325.2,0.247]
[1756826753417,3.2078,4325.8,4325.2,0.247]
[1756826753623,3.2078,4325.8,4325.0,0.247]
[1756826755827,0.1155,4325.7,4324.9,3.2078]
[1756826756021,0.1155,4325.7,4325.1,0.247]
[1756826756226,0.1155,4325.7,4325.5,3.2078]
[1756826756428,0.1155,4325.7,4325.6,0.247]
[1756826757630,0.1155,4325.7,4325.5,3.2078]
[1756826757826,0.1155,4325.7,4325.6,0.247]
[1756826758730,0.1155,4325.7,4325.6,4.247]
[1756826759224,3.2078,4327.0,4325.6,4.89427]
[1756826759423,3.2078,4327.0,4325.7,0.247]
[1756826759628,3.2078,4326.5,4325.7,0.247]
[1756826759831,3.2078,4326.5,4325.1,3.2078]
[1756826760032,3.2078,4326.5,4325.2,0.247]
[1756826760533,3.2078,4326.5,4325.2,0.66313]
[1756826760734,3.2078,4326.5,4325.6,3.2078]
[1756826760927,3.2078,4326.5,4324.9,41.8404]
[1756826760928,3.2078,4326.5,4325.7,0.247]
[1756826762022,3.2078,4326.5,4325.1,3.2078]
[1756826762332,3.2078,4326.0,4325.2,0.247]
[1756826763627,3.2078,4326.5,4325.2,0.66313]
[1756826763830,3.2078,4326.5,4325.7,3.2078]
[1756826764124,3.2078,4327.0,4325.8,0.247]
[1756826764637,3.2078,4327.0,4325.9,0.247]
[1756826766335,3.2078,4327.0,4326.3,3.2078]
[1756826766534,3.2078,4327.6,4326.4,0.247]
[1756826767331,3.2078,4328.2,4326.9,0.41596]
[1756826767530,3.2078,4328.8,4327.3,3.62372]
[1756826767734,3.2078,4328.8,4327.4,0.247]
[1756826768439,3.2078,4328.8,4327.8,3.2078]
[1756826768635,3.2078,4328.8,4327.9,0.247]
[1756826768828,3.2078,4329.3,4328.3,3.2078]
[1756826769028,3.2078,4329.3,4328.4,0.247]
[1756826769338,3.2078,4329.3,4328.4,0.57051914]
[1756826770635,3.2078,4329.8,4328.4,0.98633914]
[1756826770834,3.2078,4329.8,4328.4,0.57051914]
[1756826771035,3.2078,4329.8,4328.4,0.98633914]
[1756826771229,3.2078,4329.8,4328.4,0.57051914]
[1756826771542,3.2078,4329.8,4328.4,0.98633914]
[1756826771835,3.2078,4329.8,4328.5,0.41581]
[1756826772035,3.2078,4329.8,4328.4,0.32351914]
[1756826772237,3.2078,4329.8,4328.6,0.247]
[1756826772440,3.2078,4329.3,4328.6,0.247]
[1756826773640,3.2078,4329.8,4328.6,3.4548]
[1756826773841,3.2078,4329.3,4328.6,3.4548]
[1756826774543,3.2078,4329.3,4328.6,3.2078]
[1756826775044,3.2078,4329.3,4328.6,3.4538]
[1756826775441,3.2078,4329.3,4328.6,3.2078]
[1756826775949,0.41581,4328.6,4328.4,0.32700906]
[1756826776138,3.2078,4329.3,4328.3,0.246]
[1756826776343,0.246,4329.5,4328.3,0.246]
[1756826776544,0.4158,4328.6,4328.3,0.246]
[1756826776843,0.246,4329.6,4328.5,3.2078]
[1756826777041,0.4158,4328.7,4328.5,3.2078]
[1756826777742,1.03928,4329.6,4328.6,4.0]
[1756826777943,3.2078,4329.8,4329.0,3.2078]
[1756826778148,0.41574,4329.3,4329.1,0.246]
[1756826778547,0.41579,4328.8,4328.5,3.2078]
[1756826778742,0.41579,4328.7,4328.6,0.246]
[1756826783150,0.41576,4329.0,4328.6,3.4538]
[1756826783352,0.41578,4328.8,4328.6,3.4538]
[1756826784154,0.41578,4328.8,4328.6,0.246]
[1756826784653,1.03938,4329.2,4328.6,0.246]
[1756826784854,0.41579,4328.7,4328.6,0.246]
[1756826785552,0.41584,4328.2,4328.1,0.32826798]
[1756826785749,0.41584,4328.2,4328.1,0.57426798]
[1756826786651,3.2078,4329.3,4328.1,0.57426798]
[1756826786852,0.4158,4328.6,4328.3,0.41583]
[1756826787049,1.03931,4329.4,4328.5,3.2078]
[1756826787255,0.4158,4328.6,4328.5,3.2078]
[1756826787456,0.4158,4328.6,4328.5,3.4538]
[1756826787751,0.41577,4328.9,4328.5,3.4538]
[1756826787952,0.41576,4329.0,4328.6,0.4158]
[1756826788153,0.41577,4328.9,4328.5,3.4538]
[1756826788353,0.41573,4329.4,4329.0,0.41576]
[1756826788659,0.41573,4329.4,4329.3,3.2078]
[1756826788956,3.2078,4329.9,4328.8,3.2078]
[1756826788957,13.59987,4329.9,4328.8,3.2078]
[1756826789161,0.41578,4328.8,4328.7,0.246]
[1756826789358,0.41583,4328.3,4328.1,3.53606798]
[1756826789750,0.41583,4328.3,4328.2,0.246]
[1756826790061,0.41579,4328.8,4328.3,0.41583]
[1756826790261,3.2078,4329.4,4328.6,3.6236]
[1756826790460,3.2078,4329.4,4328.7,0.246]
[1756826790851,4.1018,4330.2,4328.8,0.41578]
[1756826791159,4.1018,4330.2,4328.7,0.246]
[1756826791359,4.33278001,4330.2,4328.7,0.246]
[1756826792562,4.1018,4330.2,4328.7,0.246]
[1756826793165,4.1018,4330.2,4328.8,0.41578]
[1756826793565,3.2078,4330.2,4328.8,0.41578]
[1756826794061,3.2078,4330.2,4329.3,3.2078]
[1756826794360,0.246,4330.6,4329.5,0.41571]
[1756826794561,3.2078,4330.7,4329.5,0.41571]
[1756826794763,3.2078,4330.7,4329.9,0.41567]
[1756826794953,3.2078,4330.7,4330.0,0.246]
[1756826796859,3.2078,4331.3,4330.5,3.2078]
[1756826797064,3.2078,4331.3,4330.6,0.246]
[1756826798263,3.2078,4331.9,4330.6,0.246]
[1756826798468,3.2078,4331.4,4330.6,0.246]
[1756826799269,3.43869,4331.4,4330.4,3.2078]
[1756826799857,3.2078,4331.4,4330.4,3.2078]
[1756826800165,3.2078,4331.9,4330.5,4.2309]
[1756826800465,3.2078,4333.0,4331.7,3.2078]
[1756826800667,3.2078,4333.0,4331.8,0.246]
[1756826800866,3.2078,4333.0,4331.8,0.56697802]
[1756826802771,3.2078,4332.5,4331.8,0.56697802]
[1756826802971,3.2078,4332.5,4331.7,3.2078]
[1756826803172,3.2078,4332.5,4331.8,0.246]
[1756826803469,0.32670106,4334.4,4330.2,3.2078]
[1756826803470,3.2078,4332.0,4330.2,3.2078]
[1756826803672,3.2078,4331.5,4330.3,0.246]
[1756826803866,3.2078,4330.9,4330.3,0.246]
[1756826804071,3.2078,4331.4,4330.3,0.246]
[1756826804462,3.2078,4331.4,4330.3,0.5708158]
[1756826804660,3.2078,4331.4,4330.3,0.246]
[1756826805067,3.2078,4330.9,4330.3,0.32917139]
[1756826805265,3.2078,4330.4,4328.9,3.2078]
[1756826805469,3.2078,4329.8,4329.0,0.246]
[1756826805670,3.2078,4329.8,4329.1,0.246]
[1756826805870,3.2078,4329.3,4329.1,0.246]
[1756826806266,3.2078,4329.8,4329.1,0.246]
[1756826806465,0.246,4330.3,4329.1,0.246]
[1756826806466,3.2078,4329.3,4329.1,0.246]
[1756826806663,3.2078,4329.8,4329.1,0.246]
[1756826807276,3.2078,4329.8,4329.2,0.3202]
[1756826807676,3.2078,4329.3,4329.2,0.3202]
[1756826807978,3.2078,4329.8,4329.2,0.3202]
[1756826808276,3.2078,4329.3,4328.6,0.3202]
[1756826808478,3.2078,4329.2,4328.6,0.3202]
[1756826808673,3.2078,4329.2,4328.8,0.3202]
[1756826808874,3.2078,4329.2,4328.6,0.3202]
[1756826809066,3.2078,4329.2,4328.7,0.3202]
[1756826810578,3.2078,4329.2,4328.7,0.527]
[1756826810770,3.2078,4329.2,4328.8,0.2068]
[1756826810976,3.2078,4329.2,4329.0,0.1229]
[1756826811179,3.2078,4329.2,4329.1,0.527]
[1756826811680,0.246,4329.5,4329.1,0.2068]
[1756826811868,0.246,4329.5,4329.0,0.1229]
[1756826811869,3.2078,4329.8,4329.7,0.2068]
[1756826812073,3.2078,4329.8,4329.7,0.7351]
[1756826812269,3.2078,4329.8,4329.7,0.527]
[1756826813179,3.2078,4329.8,4329.7,0.3202]
[1756826813876,3.2078,4329.8,4329.7,0.527]
[1756826814178,3.2078,4329.8,4329.7,0.7351]
[1756826814380,3.2078,4330.4,4329.8,0.3202]
[1756826814678,3.2078,4330.4,4330.0,0.1229]
[1756826814880,3.2078,4330.4,4330.1,0.3202]
[1756826815077,3.2078,4330.4,4329.6,0.3202]
[1756826815381,3.2078,4329.9,4329.1,0.527]
[1756826815582,3.2078,4329.9,4329.3,0.3202]
[1756826816176,3.2078,4329.4,4328.7,0.246]
[1756826816377,3.2078,4329.4,4328.8,0.3202]
[1756826816573,3.2078,4329.4,4329.0,0.1229]
[1756826816776,3.2078,4329.4,4329.1,0.3202]
[1756826817177,0.246,4329.9,4329.1,0.3202]
[1756826817178,3.4538,4329.9,4329.1,0.3202]
[1756826817679,3.2078,4329.4,4329.0,0.1229]
[1756826817878,3.2078,4329.4,4329.1,0.3202]
[1756826818280,3.2078,4329.4,4329.3,0.3202]
[1756826818581,3.2078,4329.4,4329.3,0.7351]
[1756826818779,3.2078,4329.9,4329.4,0.3202]
[1756826818974,3.2078,4329.9,4329.7,0.527]
[1756826819175,3.2078,4329.9,4329.8,0.7351]
[1756826819374,0.894,4330.2,4329.8,0.7351]
[1756826819375,0.894,4330.2,4329.8,0.527]
[1756826819582,0.894,4330.2,4329.6,0.3202]
[1756826819783,0.894,4330.2,4329.7,0.527]
[1756826819980,0.894,4330.2,4329.8,0.2068]
[1756826820180,0.894,4330.2,4329.9,0.3202]
[1756826820382,0.894,4330.2,4330.1,0.3202]
[1756826820786,3.2078,4330.4,4330.1,0.4149]
[1756826820986,3.2078,4330.4,4330.3,0.7351]
[1756826821189,3.2078,4330.4,4330.3,0.527]
[1756826821387,7.4538,4330.4,4329.6,0.3202]
[1756826821582,3.2078,4329.8,4329.6,0.3202]
[1756826821791,3.2078,4330.3,4329.7,0.3202]
[1756826821988,3.2078,4330.3,4329.6,0.3202]
[1756826822191,3.2078,4330.3,4329.7,0.3202]
[1756826822491,3.2078,4330.3,4329.7,0.2068]
[1756826822692,3.2078,4330.3,4329.5,0.1229]
[1756826822992,3.2078,4329.8,4329.5,0.1229]
[1756826823183,3.2078,4329.8,4329.6,0.3202]
[1756826823591,3.2078,4329.8,4329.6,0.527]
[1756826823890,3.4538,4330.3,4330.1,0.3202]
[1756826824485,3.4538,4330.3,4329.5,0.1229]
[1756826824686,3.4538,4330.3,4330.1,0.3202]
[1756826824985,3.4538,4330.3,4329.5,0.1229]
[1756826825189,3.4538,4330.3,4329.7,0.3202]
[1756826825384,3.2078,4329.8,4329.7,0.3202]
[1756826826786,3.2078,4329.8,4329.7,0.7351]
[1756826827390,3.2078,4330.3,4330.1,0.3202]
[1756826827694,3.2078,4330.3,4330.2,0.7351]
[1756826828886,3.2078,4330.3,4330.2,0.3202]
[1756826829081,3.2078,4330.3,4330.2,0.527]
[1756826829287,0.22997568,4332.2,4330.2,0.527]
[1756826829288,3.2078,4330.8,4330.2,0.4149]
[1756826829595,3.2078,4330.8,4330.7,0.7351]
[1756826830091,3.4538,4331.3,4330.8,0.2068]
[1756826830293,3.2078,4331.3,4331.2,0.2068]
[1756826830494,3.2078,4331.3,4331.2,0.7351]
[1756826830787,30.491,4333.0,4331.2,4.7351]
[1756826830788,3.2078,4331.9,4331.2,4.7351]
[1756826830987,3.2078,4332.4,4332.3,0.527]
[1756826831594,7.2078,4332.4,4331.6,0.2942]
[1756826831884,3.2078,4331.9,4331.6,0.2942]
[1756826832295,0.246,4331.8,4331.1,0.2942]
[1756826833882,3.2078,4330.6,4330.5,0.329]
[1756826834092,3.2078,4331.1,4330.5,0.329]
[1756826834395,3.2078,4331.1,4330.6,0.2942]
[1756826835193,3.2078,4331.1,4330.7,0.2061]
[1756826835394,3.4538,4331.1,4331.0,0.8259]
[1756826835691,3.4538,4331.1,4331.0,0.2942]
[1756826836789,3.2078,4331.1,4331.0,0.8259]
[1756826836994,3.2078,4331.6,4331.5,0.8259]
[1756826837195,3.2078,4331.6,4331.5,0.621]
[1756826837392,3.2078,4331.6,4331.5,0.2942]
[1756826837587,3.2078,4331.6,4331.0,0.1207]
[1756826837788,3.2078,4331.6,4331.1,0.5003]
[1756826837986,3.2078,4331.6,4331.5,0.8259]
[1756826840595,3.2078,4331.6,4331.5,0.621]
[1756826840891,3.2078,4331.6,4331.5,0.8259]
[1756826841298,0.246,4332.2,4332.0,0.2942]
[1756826841498,3.2078,4331.6,4331.5,0.4149]
[1756826841896,3.2078,4331.6,4331.5,0.621]
[1756826842094,3.2078,4331.6,4331.5,0.8259]
[1756826843600,3.2078,4331.6,4331.5,0.4149]
[1756826843797,3.2078,4331.6,4331.5,0.621]
[1756826844299,3.2078,4331.6,4331.5,0.8259]
[1756826845000,3.2078,4331.6,4331.5,0.621]
[1756826845200,3.2078,4331.6,4331.5,0.8259]
[1756826845401,3.2078,4332.1,4332.0,0.8259]
[1756826845794,3.2078,4332.6,4332.0,0.8259]
[1756826845994,3.2078,4332.6,4332.5,0.8259]